fUST/lending_fUST_20250121
["ID","MTS","AMOUNT","RATE_DAILY","PERIOD"]
[349778859,1737423038313,-200.0,0.000218,15]
[349778861,1737423038323,-200.0,0.000218,16]
[349778863,1737423038333,-200.0,0.000218,13]
[349778865,1737423038343,-200.0,0.000218,14]
[349778867,1737423038354,-200.0,0.000218,15]
[349778869,1737423038364,-200.0,0.000218,14]
[349778871,1737423038374,-200.0,0.000218,2]
[349778873,1737423038384,-200.0,0.000218,3]
[349778875,1737423038394,-200.0,0.000218,2]
[349778877,1737423038404,-211.0,0.000218,15]
[349778879,1737423038414,-200.0,0.000218,3]
[349778881,1737423038423,-211.67918264,0.000218,3]
[349778884,1737423038433,-5189.96300805,0.00021817,2]
[349778886,1737423038447,-660.28159868,0.00021828,2]
[349778888,1737423038458,-237.87248208,0.00021873,2]
[349778889,1737423038468,-500.0,0.00021873,2]
[349778891,1737423038478,-400.82498513,0.00021873,2]
[349778893,1737423038488,-368.2276029,0.00021873,2]
[349778895,1737423038498,-151.0,0.00021898,2]
[349778897,1737423038508,-160.51722033,0.00021899,2]
[349778899,1737423038518,-239.09153551,0.00021899,7]
[349778901,1737423038528,-335.78121839,0.00021899,2]
[349778903,1737423038538,-197.74520125,0.00021899,2]
[349778905,1737423038548,-790.10307576,0.000219,5]
[349778907,1737423038558,-458.0398019,0.000219,5]
[349778909,1737423038568,-24104.94121498,0.000219,15]
[349778911,1737423038581,-21883.3892917,0.000219,15]
[349778914,1737423038598,-231787.59900001,0.000219,15]
[349778917,1737423038610,-322731.80945088,0.000219,15]
[349779118,1737423040223,-5045.79140168,0.000219,15]
[349779748,1737423046166,-324.757758,0.00021681,2]
[349779750,1737423046176,-25254.10937873,0.000219,15]
[349779752,1737423046188,-4039.58803822,0.000219,15]
[349779754,1737423046202,-5076.58065023,0.000219,15]
[349779756,1737423046214,-2016.55542511,0.000219,15]
[349779779,1737423046484,-8065.66954934,0.000219,15]
[349779781,1737423046497,-100724.11741511,0.000219,15]
[349780418,1737423228378,165.579043,0.00013973,2]
[349780420,1737423357990,178.36,0.00024,120]
[349780422,1737423581038,-786.38559549,0.00019212,2]
[349780423,1737423581071,-786.38559549,0.00019406,2]
[349780424,1737423581094,-786.38559549,0.000198,2]
[349780425,1737423589147,5000.0,0.0002,2]
[349780426,1737423597002,601.13192372,0.0002,2]
[349780427,1737423605636,5000.0,0.0002,2]
[349780428,1737423621333,1137.81954965,0.0002,2]
[349780429,1737423716481,486.0,0.00024,120]
[349780432,1737423829093,160.0,0.00019959,6]
[349780433,1737423829362,160.0,0.00019661,5]
[349780434,1737423829667,160.0,0.00019363,4]
[349780435,1737423829973,160.0,0.00019065,3]
[349780436,1737423830275,313.57240094,0.00019959,5]
[349780438,1737423846953,524.25706366,0.000198,2]
[349780440,1737423875509,500.0,0.00019494,2]
[349780441,1737423896637,500.0,0.00018519,2]
[349780442,1737423917887,418.23740139,0.00017593,2]
[349780444,1737424121859,165.247438,0.00013973,2]
[349780445,1737424148665,349.50470911,0.000189,2]
[349780730,1737424238184,-168.3692734,0.00020281,2]
[349780732,1737424238194,-159.89239171,0.00020352,2]
[349780734,1737424238204,-185.0640895,0.00020401,2]
[349780736,1737424238213,-160.0,0.00020449,2]
[349780738,1737424238222,-509.42785058,0.00020452,7]
[349780740,1737424238232,-1048.4800885,0.00020458,2]
[349780741,1737424238241,-500.0,0.0002052,2]
[349780743,1737424238253,-464.424,0.000208,2]
[349780745,1737424238262,-150.176124,0.000211,2]
[349780747,1737424238275,-300.0,0.0002149,2]
[349780749,1737424238285,-154.0,0.00021491,2]
[349780751,1737424238294,-154.0,0.00021491,2]
[349780753,1737424238304,-154.0,0.00021491,2]
[349780755,1737424238314,-154.0,0.00021491,2]
[349780757,1737424238324,-62.95914577,0.00021491,2]
[349780759,1737424238341,-91.04085423,0.00021491,2]
[349780761,1737424238351,-154.0,0.00021491,2]
[349780763,1737424238361,-154.0,0.00021491,2]
[349780766,1737424238375,-154.0,0.00021491,2]
[349780767,1737424238385,-154.0,0.00021491,2]
[349780770,1737424238395,-154.0,0.00021491,2]
[349780773,1737424238405,-154.0,0.00021491,2]
[349780775,1737424238414,-154.0,0.00021491,2]
[349780777,1737424238424,-154.0,0.00021491,2]
[349780779,1737424238433,-154.0,0.00021491,2]
[349780781,1737424238442,-154.0,0.00021491,2]
[349780783,1737424238452,-154.0,0.00021491,2]
[349780785,1737424238462,-154.0,0.00021491,2]
[349780787,1737424238471,-154.0,0.00021491,2]
[349780789,1737424238481,-154.0,0.00021491,2]
[349780791,1737424238491,-154.0,0.00021491,2]
[349780793,1737424238504,-169.63,0.00021491,2]
[349780795,1737424238513,-154.0,0.00021491,2]
[349780796,1737424238524,-154.0,0.00021491,2]
[349780798,1737424238533,-154.0,0.00021491,2]
[349780800,1737424238542,-154.0,0.00021491,2]
[349780801,1737424238551,-154.0,0.00021491,2]
[349780803,1737424238560,-154.0,0.00021491,2]
[349780805,1737424238571,-154.0,0.00021491,2]
[349780807,1737424238580,-154.0,0.00021491,2]
[349780809,1737424238590,-154.0,0.00021491,2]
[349780811,1737424238599,-154.0,0.00021491,2]
[349780813,1737424238609,-165.53,0.00021491,2]
[349780814,1737424238619,-500.0,0.00021546,2]
[349780816,1737424238628,-172.0,0.00021603,2]
[349780818,1737424238639,-179.7322714,0.0002168,2]
[349780819,1737424238649,-155.26,0.00021687,2]
[349780821,1737424238659,-150.238,0.00021687,2]
[349780823,1737424238669,-395.0,0.00021687,2]
[349780824,1737424238678,-519.76832943,0.000218,2]
[349780826,1737424238688,-151.0,0.00021898,2]
[349780828,1737424238696,-209.714,0.00021898,2]
[349780829,1737424238706,-104653.12596854,0.000219,15]
[349780832,1737424238719,-84566.46568626,0.000219,15]
[349780834,1737424238729,-8960.94,0.000219,3]
[349780836,1737424238739,-1000.699514,0.000219,2]
[349780838,1737424238748,-150.169263,0.000219,2]
[349780840,1737424238764,-268.65569623,0.000219,3]
[349780842,1737424238774,-5645.55306356,0.0002191,2]
[349780844,1737424238784,-605.86934828,0.00021916,2]
[349780846,1737424238794,-181.04367114,0.00021916,2]
[349780848,1737424238803,-500.0,0.00021916,2]
[349780850,1737424238813,-500.0,0.00021916,2]
[349780852,1737424238823,-500.0,0.00021916,2]
[349780854,1737424238833,-176.93550222,0.00021916,2]
[349780856,1737424238843,-500.0,0.00021916,2]
[349780858,1737424238853,-500.0,0.00021916,2]
[349780860,1737424238863,-500.0,0.00021916,2]
[349780862,1737424238873,-574.1502329,0.00021916,2]
[349780863,1737424238883,-500.0,0.00021916,2]
[349780864,1737424238893,-497.33040781,0.00021916,2]
[349780865,1737424238903,-500.0,0.00021916,2]
[349780866,1737424238913,-500.0,0.00021916,2]
[349780867,1737424238923,-500.0,0.00021916,2]
[349780868,1737424238932,-500.0,0.00021916,2]
[349780869,1737424238942,-500.0,0.00021916,2]
[349780870,1737424238952,-500.0,0.00021916,2]
[349780871,1737424238961,-500.0,0.00021916,2]
[349780872,1737424238971,-500.0,0.00021916,2]
[349780877,1737424239196,-501.8303494,0.00021916,2]
[349780879,1737424239206,-500.0,0.00021916,2]
[349780881,1737424239216,-398.37805635,0.00021916,2]
[349780883,1737424239227,-500.0,0.00021916,2]
[349780886,1737424239236,-243.2185752,0.00021916,2]
[349780888,1737424239246,-500.0,0.00021916,2]
[349780889,1737424239259,-486.0044684,0.00021916,2]
[349780892,1737424239270,-500.0,0.00021916,2]
[349780894,1737424239281,-500.0,0.00021916,2]
[349780896,1737424239291,-500.0,0.00021916,2]
[349780897,1737424239300,-500.0,0.00021916,2]
[349780899,1737424239311,-500.0,0.00021916,2]
[349780901,1737424239321,-500.0,0.00021916,2]
[349780904,1737424239330,-500.0,0.00021916,2]
[349780906,1737424239340,-483.4051307,0.00021916,2]
[349780908,1737424239351,-500.0,0.00021916,2]
[349780910,1737424239361,-500.0,0.00021916,2]
[349780912,1737424239370,-500.0,0.00021916,2]
[349780914,1737424239380,-500.0,0.00021916,2]
[349780916,1737424239390,-500.0,0.00021916,2]
[349780918,1737424239400,-635.66610398,0.00021916,2]
[349780920,1737424239409,-2187.5322347,0.00021917,5]
[349780922,1737424239418,-500.0,0.00021917,2]
[349780924,1737424239428,-501.4703746,0.00021917,3]
[349780926,1737424239438,-500.0,0.00021917,3]
[349780928,1737424239447,-501.27164102,0.00021917,3]
[349780930,1737424239457,-620.23515891,0.00021917,3]
[349780932,1737424239466,-271.2150236,0.00021917,3]
[349780934,1737424239476,-502.6932823,0.00021917,3]
[349780936,1737424239486,-152.675225,0.00021917,2]
[349780938,1737424239496,-151.424227,0.00021917,2]
[349780940,1737424239508,-501.39845733,0.00021917,3]
[349780942,1737424239518,-506.27345802,0.00021917,3]
[349780944,1737424239529,-500.0,0.00021917,3]
[349780946,1737424239540,-501.36413551,0.00021917,3]
[349780948,1737424239550,-501.19772719,0.00021917,3]
[349780950,1737424239560,-504.91675701,0.00021917,3]
[349780952,1737424239571,-500.0,0.00021917,3]
[349780954,1737424239582,-513.1014421,0.00021917,3]
[349780956,1737424239592,-500.0,0.00021917,3]
[349780958,1737424239602,-520.53887112,0.00021917,3]
[349780960,1737424239612,-500.0,0.00021917,3]
[349780962,1737424239622,-500.0,0.00021917,3]
[349780964,1737424239631,-652.12,0.00021917,3]
[349780966,1737424239641,-500.0,0.00021917,3]
[349780969,1737424239659,-500.0,0.00021917,3]
[349780972,1737424239673,-151.938811,0.00021917,2]
[349780974,1737424239685,-500.0,0.00021917,3]
[349780976,1737424239695,-372.49178858,0.00021917,3]
[349780978,1737424239706,-151.997268,0.00021917,2]
[349780980,1737424239716,-503.69561944,0.00021917,3]
[349780982,1737424239726,-297.20513462,0.00021917,3]
[349780984,1737424239736,-503.27659429,0.00021917,3]
[349780987,1737424239747,-500.0,0.00021917,3]
[349780989,1737424239760,-570.30769976,0.00021917,3]
[349780992,1737424239772,-503.0010523,0.00021917,3]
[349780994,1737424239783,-500.0,0.00021917,3]
[349780996,1737424239793,-500.0,0.00021917,3]
[349780998,1737424239803,-501.68338429,0.00021917,3]
[349781000,1737424239813,-500.0,0.00021917,3]
[349781002,1737424239823,-502.06903264,0.00021917,3]
[349781004,1737424239833,-509.24609083,0.00021917,3]
[349781006,1737424239843,-501.9545255,0.00021917,3]
[349781009,1737424239853,-500.0,0.00021917,3]
[349781011,1737424239864,-152.056933,0.00021917,2]
[349781013,1737424239874,-500.0,0.00021917,3]
[349781015,1737424239884,-756.57,0.00021917,3]
[349781017,1737424239894,-152.145839,0.00021917,2]
[349781019,1737424239904,-500.0,0.00021917,3]
[349781021,1737424239914,-500.0,0.00021917,3]
[349781023,1737424239925,-503.05060721,0.00021917,3]
[349781025,1737424239935,-500.0,0.00021917,3]
[349781027,1737424239945,-500.0,0.00021917,3]
[349781030,1737424239955,-429.46344913,0.00021917,3]
[349781032,1737424239965,-151.0,0.00021917,2]
[349781034,1737424239975,-154.129948,0.00021917,2]
[349781036,1737424239985,-500.0,0.00021917,3]
[349781038,1737424239996,-500.0,0.00021917,3]
[349781040,1737424240009,-500.0,0.00021917,3]
[349781042,1737424240019,-218.901095,0.00021917,2]
[349781044,1737424240029,-503.89170419,0.00021917,3]
[349781046,1737424240039,-502.47316592,0.00021917,3]
[349781048,1737424240049,-500.0,0.00021917,3]
[349781050,1737424240059,-442.10717244,0.00021917,3]
[349781397,1737424243319,-231.52466384,0.000218,2]
[349781399,1737424243331,-171.8545479,0.00021898,2]
[349781401,1737424243341,-57.89282756,0.00021917,3]
[349781403,1737424243353,-509.7830785,0.00021917,3]
[349781405,1737424243362,-500.0,0.00021917,3]
[349781407,1737424243372,-500.0,0.00021917,3]
[349781409,1737424243383,-500.0,0.00021917,3]
[349781412,1737424243392,-500.0,0.00021917,3]
[349781414,1737424243402,-514.90374058,0.00021917,3]
[349781416,1737424243411,-500.0,0.00021917,3]
[349781418,1737424243422,-500.0,0.00021917,3]
[349781420,1737424243431,-500.0,0.00021917,3]
[349781422,1737424243442,-500.0,0.00021917,3]
[349781424,1737424243452,-500.0,0.00021917,3]
[349781426,1737424243461,-500.0,0.00021917,3]
[349781428,1737424243471,-500.0,0.00021917,3]
[349781430,1737424243480,-151.267471,0.00021917,2]
[349781432,1737424243490,-233.32727613,0.00021917,3]
[349781434,1737424243500,-500.0,0.00021917,3]
[349781436,1737424243512,-500.0,0.00021917,3]
[349781438,1737424243522,-501.90241704,0.00021917,3]
[349781440,1737424243532,-500.0,0.00021917,3]
[349781442,1737424243542,-501.35776094,0.00021917,3]
[349781444,1737424243552,-505.53459167,0.00021917,3]
[349781446,1737424243561,-500.0,0.00021917,3]
[349781448,1737424243571,-500.0,0.00021917,3]
[349781451,1737424243581,-505.74510383,0.00021917,3]
[349781453,1737424243591,-500.0,0.00021917,3]
[349781455,1737424243601,-502.05404603,0.00021917,3]
[349781457,1737424243610,-502.60395195,0.00021917,3]
[349781459,1737424243620,-174.154648,0.00021917,2]
[349781461,1737424243630,-500.0,0.00021917,3]
[349781463,1737424243639,-174.154648,0.00021917,2]
[349781465,1737424243649,-174.154648,0.00021917,2]
[349781467,1737424243660,-174.154648,0.00021917,2]
[349781469,1737424243669,-174.154648,0.00021917,2]
[349781472,1737424243679,-174.154648,0.00021917,2]
[349781474,1737424243689,-500.0,0.00021917,3]
[349781476,1737424243698,-174.154648,0.00021917,2]
[349781478,1737424243708,-174.154648,0.00021917,2]
[349781480,1737424243718,-174.154648,0.00021917,2]
[349781482,1737424243728,-174.154648,0.00021917,2]
[349781484,1737424243739,-500.0,0.00021917,3]
[349781486,1737424243748,-151.0,0.00021917,2]
[349781488,1737424243760,-151.0,0.00021917,2]
[349781490,1737424243769,-151.0,0.00021917,2]
[349781492,1737424243779,-264.201337,0.00021917,2]
[349781494,1737424243788,-500.0,0.00021917,3]
[349781496,1737424243798,-501.58907105,0.00021917,3]
[349781498,1737424243807,-500.0,0.00021917,3]
[349781500,1737424243817,-502.90014779,0.00021917,3]
[349781502,1737424243827,-694.92,0.00021917,3]
[349781504,1737424243836,-500.0,0.00021917,3]
[349781506,1737424243846,-500.0,0.00021917,3]
[349781508,1737424243855,-500.0,0.00021917,3]
[349781510,1737424243864,-500.0,0.00021917,3]
[349781512,1737424243874,-980.0,0.00021917,3]
[349781514,1737424243883,-500.0,0.00021917,3]
[349781516,1737424243893,-703.53,0.00021917,3]
[349781518,1737424243902,-503.10215941,0.00021917,3]
[349781521,1737424243912,-969.98,0.00021917,3]
[349781524,1737424243921,-522.61604316,0.00021917,3]
[349781526,1737424243931,-577.94,0.00021917,3]
[349781528,1737424243941,-500.0,0.00021917,3]
[349781530,1737424243951,-151.0,0.00021917,2]
[349781532,1737424243960,-524.31,0.00021917,3]
[349781534,1737424243970,-153.017982,0.00021917,2]
[349781536,1737424243980,-500.0,0.00021917,3]
[349781538,1737424243989,-500.0,0.00021917,3]
[349781540,1737424243999,-500.0,0.00021917,3]
[349781542,1737424244009,-151.0,0.00021917,2]
[349781544,1737424244018,-153.278511,0.00021917,2]
[349781546,1737424244028,-473.40149276,0.00021917,3]
[349781548,1737424244037,-500.0,0.00021917,3]
[349781550,1737424244046,-500.0,0.00021917,3]
[349781552,1737424244055,-500.0,0.00021917,3]
[349781554,1737424244065,-501.99096577,0.00021917,3]
[349781556,1737424244075,-500.0,0.00021917,3]
[349781558,1737424244085,-500.0,0.00021917,3]
[349781560,1737424244094,-500.0,0.00021917,3]
[349781562,1737424244103,-504.15726588,0.00021917,3]
[349781564,1737424244113,-500.0,0.00021917,3]
[349781566,1737424244122,-500.0,0.00021917,3]
[349781568,1737424244132,-500.0,0.00021917,3]
[349781570,1737424244141,-500.0,0.00021917,3]
[349781572,1737424244151,-728.89,0.00021917,3]
[349781574,1737424244161,-504.25132039,0.00021917,3]
[349781576,1737424244170,-500.0,0.00021917,3]
[349781578,1737424244179,-500.0,0.00021917,3]
[349781580,1737424244189,-500.0,0.00021917,3]
[349781582,1737424244198,-414.34339911,0.00021917,3]
[349781584,1737424244207,-500.0,0.00021917,3]
[349781586,1737424244217,-506.09,0.00021917,3]
[349781588,1737424244227,-502.9076769,0.00021917,3]
[349781590,1737424244236,-500.0,0.00021917,3]
[349781592,1737424244245,-500.65807749,0.00021917,3]
[349781594,1737424244255,-511.72975482,0.00021917,3]
[349781596,1737424244266,-500.0,0.00021917,3]
[349781598,1737424244279,-500.0,0.00021917,3]
[349781600,1737424244289,-501.80280555,0.00021917,3]
[349781603,1737424244299,-500.0,0.00021917,3]
[349781605,1737424244308,-502.62365876,0.00021917,3]
[349781607,1737424244318,-500.0,0.00021917,3]
[349781609,1737424244328,-1105.56,0.00021917,3]
[349781611,1737424244338,-464.51641689,0.00021917,3]
[349781613,1737424244348,-500.0,0.00021917,3]
[349781615,1737424244358,-502.08119785,0.00021917,3]
[349781617,1737424244367,-500.0,0.00021917,3]
[349781619,1737424244377,-500.0,0.00021917,3]
[349781621,1737424244387,-500.0,0.00021917,3]
[349781623,1737424244396,-500.0,0.00021917,2]
[349781625,1737424244406,-500.0,0.00021917,3]
[349781627,1737424244415,-500.0,0.00021917,3]
[349781629,1737424244425,-500.0,0.00021917,3]
[349781631,1737424244435,-500.0,0.00021917,3]
[349781633,1737424244445,-500.0,0.00021917,3]
[349781635,1737424244454,-1603.69,0.00021917,3]
[349781637,1737424244464,-500.0,0.00021917,3]
[349781640,1737424244474,-500.0,0.00021917,3]
[349781642,1737424244484,-500.0,0.00021917,3]
[349781644,1737424244493,-500.0,0.00021917,3]
[349781646,1737424244503,-500.0,0.00021917,3]
[349781648,1737424244515,-500.0,0.00021917,3]
[349781650,1737424244525,-500.0,0.00021917,3]
[349781652,1737424244534,-392.65278601,0.00021917,3]
[349781654,1737424244544,-500.0,0.00021917,3]
[349781656,1737424244554,-500.0,0.00021917,3]
[349781658,1737424244563,-501.43152836,0.00021917,3]
[349781660,1737424244572,-1351.48,0.00021917,3]
[349781662,1737424244582,-641.50853614,0.00021917,3]
[349781664,1737424244591,-500.0,0.00021917,3]
[349781666,1737424244600,-501.12838671,0.00021917,3]
[349781668,1737424244610,-500.59409632,0.00021917,3]
[349781670,1737424244620,-501.17027452,0.00021917,3]
[349781672,1737424244630,-885.99,0.00021917,3]
[349781674,1737424244640,-521.94,0.00021917,3]
[349781676,1737424244650,-500.0,0.00021917,3]
[349781678,1737424244659,-500.0,0.00021917,3]
[349781680,1737424244668,-500.0,0.00021917,3]
[349781682,1737424244678,-500.0,0.00021917,3]
[349781684,1737424244687,-1827.56,0.00021917,3]
[349781686,1737424244697,-500.0,0.00021917,3]
[349781688,1737424244706,-565.95,0.00021917,3]
[349781690,1737424244715,-500.0,0.00021917,3]
[349781692,1737424244725,-500.0,0.00021917,3]
[349781694,1737424244734,-951.52,0.00021917,3]
[349781696,1737424244744,-500.0,0.00021917,3]
[349781698,1737424244753,-500.0,0.00021917,3]
[349781700,1737424244764,-500.0,0.00021917,3]
[349781702,1737424244774,-500.0,0.00021917,3]
[349781704,1737424244783,-504.07612177,0.00021917,3]
[349781706,1737424244793,-925.0,0.00021917,3]
[349781708,1737424244802,-500.0,0.00021917,3]
[349781710,1737424244811,-500.0,0.00021917,3]
[349781712,1737424244820,-505.21559825,0.00021917,3]
[349781728,1737424244998,-582.98443587,0.00021917,3]
[349781730,1737424245011,-500.0,0.00021917,3]
[349781732,1737424245020,-500.0,0.00021917,3]
[349781734,1737424245029,-285.32611708,0.00021917,3]
[349781737,1737424245039,-202.821511,0.00021917,2]
[349781739,1737424245048,-500.0,0.00021917,3]
[349781741,1737424245058,-500.0,0.00021917,3]
[349781743,1737424245067,-500.0,0.00021917,3]
[349781745,1737424245077,-507.0040403,0.00021917,3]
[349781747,1737424245086,-151.0,0.00021917,2]
[349781749,1737424245095,-151.0,0.00021917,2]
[349781751,1737424245105,-154.73532,0.00021917,2]
[349781753,1737424245114,-500.71425782,0.00021917,3]
[349781755,1737424245124,-500.0,0.00021917,3]
[349781757,1737424245133,-913.87,0.00021917,3]
[349781759,1737424245143,-501.81943548,0.00021917,3]
[349781761,1737424245152,-500.0,0.00021917,3]
[349781763,1737424245161,-500.0,0.00021917,3]
[349781765,1737424245171,-500.0,0.00021917,3]
[349781767,1737424245180,-558.76445132,0.00021917,3]
[349781769,1737424245189,-500.0,0.00021917,3]
[349781772,1737424245199,-151.0,0.00021917,2]
[349781774,1737424245209,-153.28632,0.00021917,2]
[349781776,1737424245220,-910.54,0.00021917,3]
[349781778,1737424245230,-151.0,0.00021917,2]
[349781780,1737424245239,-151.0,0.00021917,2]
[349781782,1737424245248,-282.633939,0.00021917,2]
[349781784,1737424245260,-641.92489896,0.00021917,3]
[349781786,1737424245269,-500.0,0.00021917,3]
[349781788,1737424245281,-584.81750337,0.00021917,3]
[349781790,1737424245289,-501.65567,0.00021917,3]
[349781792,1737424245298,-308.27275982,0.00021917,3]
[349781794,1737424245307,-510.16992112,0.00021917,3]
[349781796,1737424245317,-500.0,0.00021917,3]
[349781798,1737424245326,-500.0,0.00021917,3]
[349781800,1737424245335,-504.04372926,0.00021917,3]
[349781802,1737424245345,-500.0,0.00021917,3]
[349781804,1737424245354,-506.46759668,0.00021917,3]
[349781806,1737424245364,-1673.3,0.00021917,3]
[349781808,1737424245373,-500.0,0.00021917,3]
[349781810,1737424245382,-151.0,0.00021917,2]
[349781812,1737424245391,-500.0,0.00021917,3]
[349781814,1737424245400,-151.0,0.00021917,2]
[349781816,1737424245409,-155.757493,0.00021917,2]
[349781818,1737424245418,-500.0,0.00021917,3]
[349781820,1737424245427,-535.97,0.00021917,3]
[349781822,1737424245436,-500.0,0.00021917,3]
[349781824,1737424245446,-500.0,0.00021917,3]
[349781826,1737424245455,-500.0,0.00021917,3]
[349781828,1737424245465,-500.0,0.00021917,3]
[349781831,1737424245475,-500.0,0.00021917,3]
[349781833,1737424245484,-500.0,0.00021917,3]
[349781834,1737424245494,-500.0,0.00021917,3]
[349781836,1737424245503,-500.0,0.00021917,3]
[349781839,1737424245514,-500.0,0.00021917,3]
[349781841,1737424245525,-500.0,0.00021917,3]
[349781843,1737424245535,-500.0,0.00021917,3]
[349781845,1737424245545,-500.0,0.00021917,3]
[349781847,1737424245555,-500.0,0.00021917,3]
[349781849,1737424245565,-500.0,0.00021917,3]
[349781851,1737424245574,-500.0,0.00021917,3]
[349781853,1737424245584,-500.0,0.00021917,3]
[349781855,1737424245594,-500.0,0.00021917,3]
[349781857,1737424245605,-333.97380461,0.00021917,3]
[349781859,1737424245615,-501.30814898,0.00021917,3]
[349781861,1737424245624,-500.0,0.00021917,3]
[349781863,1737424245633,-500.0,0.00021917,3]
[349781865,1737424245643,-504.97649687,0.00021917,3]
[349781867,1737424245652,-500.0,0.00021917,3]
[349781869,1737424245661,-500.0,0.00021917,3]
[349781871,1737424245671,-1069.67,0.00021917,3]
[349781873,1737424245680,-151.0,0.00021917,2]
[349781875,1737424245691,-502.31508726,0.00021917,3]
[349781877,1737424245701,-153.369708,0.00021917,2]
[349781879,1737424245710,-500.0,0.00021917,3]
[349781882,1737424245720,-629.25,0.00021917,3]
[349781884,1737424245729,-869.85,0.00021917,3]
[349781885,1737424245739,-764.58,0.00021917,3]
[349781888,1737424245748,-936.84,0.00021917,3]
[349781890,1737424245758,-500.0,0.00021917,3]
[349781892,1737424245768,-500.0,0.00021917,3]
[349781894,1737424245778,-500.0,0.00021917,3]
[349781896,1737424245787,-205.509497,0.00021917,2]
[349781898,1737424245796,-499.88328857,0.00021917,3]
[349781953,1737424246285,-150.161,0.00021687,2]
[349781955,1737424246295,-847.27671143,0.00021917,3]
[349781957,1737424246305,-500.0,0.00021917,3]
[349781959,1737424246317,-500.0,0.00021917,3]
[349781961,1737424246326,-500.0,0.00021917,3]
[349781963,1737424246336,-500.0,0.00021917,3]
[349781965,1737424246347,-500.0,0.00021917,3]
[349781967,1737424246356,-504.57467689,0.00021917,3]
[349781969,1737424246366,-560.53,0.00021917,3]
[349781971,1737424246375,-500.0,0.00021917,3]
[349781973,1737424246385,-500.96315653,0.00021917,3]
[349781975,1737424246395,-1000.0,0.00021917,3]
[349781977,1737424246404,-500.0,0.00021917,3]
[349781979,1737424246413,-500.0,0.00021917,3]
[349781981,1737424246423,-500.0,0.00021917,3]
[349781983,1737424246432,-550.77755225,0.00021917,3]
[349781985,1737424246442,-500.0,0.00021917,3]
[349781987,1737424246451,-501.16132116,0.00021917,3]
[349781989,1737424246460,-500.0,0.00021917,3]
[349781991,1737424246469,-505.59226146,0.00021917,3]
[349781993,1737424246479,-151.0,0.00021917,2]
[349781995,1737424246488,-151.0,0.00021917,2]
[349781997,1737424246498,-151.0,0.00021917,2]
[349781999,1737424246508,-151.0,0.00021917,2]
[349782001,1737424246523,-151.0,0.00021917,2]
[349782003,1737424246534,-501.63087348,0.00021917,3]
[349782005,1737424246544,-151.0,0.00021917,2]
[349782007,1737424246554,-151.0,0.00021917,2]
[349782009,1737424246563,-151.0,0.00021917,2]
[349782011,1737424246573,-500.0,0.00021917,3]
[349782013,1737424246583,-151.0,0.00021917,2]
[349782015,1737424246594,-500.0,0.00021917,3]
[349782017,1737424246604,-503.84623592,0.00021917,3]
[349782020,1737424246614,-258.45469,0.00021917,2]
[349782022,1737424246623,-500.57238905,0.00021917,3]
[349782023,1737424246633,-184.23352796,0.00021917,3]
[349782026,1737424246643,-500.0,0.00021917,3]
[349782027,1737424246652,-866.18,0.00021917,3]
[349782029,1737424246662,-500.0,0.00021917,3]
[349782031,1737424246671,-500.0,0.00021917,3]